fUST/lending_fUST_20260101
["ID","MTS","AMOUNT","RATE_DAILY","PERIOD"]
[400246678,1767216634464,-248.76562361,0.00021917,2]
[400246679,1767216634473,-535.06,0.00021917,2]
[400246680,1767216634482,-564.82,0.00021917,2]
[400246681,1767216634492,-500.0,0.00021917,2]
[400246682,1767216634501,-500.0,0.00021917,2]
[400246683,1767216634510,-78257.68507924,0.0002199,2]
[400246694,1767216638111,-2472.99554256,0.0002199,2]
[400246695,1767216638122,-435.0,0.0002199,2]
[400246696,1767216638134,-18834.3193782,0.0002199,2]
[400246697,1767216638143,-169.8,0.00022,2]
[400246698,1767216638152,-176.03,0.00022,7]
[400246699,1767216638162,-260.8204353,0.0002201,2]
[400246700,1767216638172,-174.1,0.00022112,2]
[400246701,1767216638181,-500.0,0.00022191,2]
[400246702,1767216638191,-500.0,0.00022191,2]
[400246703,1767216638200,-502.54902313,0.00022191,2]
[400246704,1767216638210,-500.0,0.00022191,2]
[400246705,1767216638219,-651.44,0.00022191,2]
[400246706,1767216638228,-1032.76,0.00022191,2]
[400246707,1767216638237,-3980.81,0.00022191,2]
[400246708,1767216638247,-500.0,0.00022191,2]
[400246709,1767216638256,-5162.24,0.00022191,2]
[400246710,1767216638266,-500.0,0.00022191,2]
[400246711,1767216638275,-570.67,0.00022191,2]
[400246712,1767216638284,-1159.08,0.00022191,2]
[400246713,1767216638293,-500.0,0.00022191,2]
[400246714,1767216638303,-535.06,0.00022191,2]
[400246715,1767216638312,-564.82,0.00022191,2]
[400246716,1767216638321,-500.0,0.00022191,2]
[400246717,1767216638330,-500.0,0.00022465,2]
[400246718,1767216638340,-500.0,0.00022465,2]
[400246719,1767216638349,-502.54902313,0.00022465,2]
[400246720,1767216638358,-500.0,0.00022465,2]
[400246721,1767216638371,-651.44,0.00022465,2]
[400246722,1767216638381,-1032.76,0.00022465,2]
[400246723,1767216638391,-3980.81,0.00022465,2]
[400246724,1767216638402,-500.0,0.00022465,2]
[400246725,1767216638411,-5162.24,0.00022465,2]
[400246726,1767216638421,-500.0,0.00022465,2]
[400246727,1767216638430,-570.67,0.00022465,2]
[400246728,1767216638440,-1159.08,0.00022465,2]
[400246729,1767216638449,-500.0,0.00022465,2]
[400246730,1767216638459,-535.06,0.00022465,2]
[400246731,1767216638469,-564.82,0.00022465,2]
[400246732,1767216638478,-500.0,0.00022465,2]
[400246733,1767216638487,-500.0,0.00022739,2]
[400246734,1767216638498,-500.0,0.00022739,2]
[400246735,1767216638508,-502.54902313,0.00022739,2]
[400246736,1767216638518,-500.0,0.00022739,2]
[400246737,1767216638528,-651.44,0.00022739,2]
[400246738,1767216638538,-1032.76,0.00022739,2]
[400246739,1767216638547,-3980.81,0.00022739,2]
[400246740,1767216638557,-500.0,0.00022739,2]
[400246741,1767216638567,-5162.24,0.00022739,2]
[400246742,1767216638576,-500.0,0.00022739,2]
[400246743,1767216638586,-570.67,0.00022739,2]
[400246744,1767216638595,-1159.08,0.00022739,2]
[400246745,1767216638605,-500.0,0.00022739,2]
[400246746,1767216638616,-535.06,0.00022739,2]
[400246747,1767216638626,-564.82,0.00022739,2]
[400246748,1767216638635,-500.0,0.00022739,2]
[400246749,1767216638646,-149999.999999,0.00023,2]
[400246750,1767216638656,-600000.0,0.00023,30]
[400246751,1767216638666,-8423.7,0.00023,2]
[400246752,1767216638676,-231.01015328,0.00023006,2]
[400246753,1767216638685,-199.94664657,0.00023006,2]
[400246754,1767216638695,-332.24219281,0.00023006,2]
[400246755,1767216638705,-478.25220598,0.00023006,2]
[400246756,1767216638828,-807.2,0.00023007,2]
[400246757,1767216638839,-155.07900291,0.00023013,2]
[400246758,1767216638849,-500.0,0.00023013,2]
[400246759,1767216638859,-502.54902313,0.00023013,2]
[400246760,1767216638869,-500.0,0.00023013,2]
[400246761,1767216638878,-651.44,0.00023013,2]
[400246762,1767216638888,-1032.76,0.00023013,2]
[400246763,1767216638898,-3980.81,0.00023013,2]
[400246764,1767216638908,-500.0,0.00023013,2]
[400246765,1767216638918,-5162.24,0.00023013,2]
[400246766,1767216638927,-500.0,0.00023013,2]
[400246767,1767216638937,-570.67,0.00023013,2]
[400246768,1767216638947,-1159.08,0.00023013,2]
[400246769,1767216638956,-500.0,0.00023013,2]
[400246770,1767216638966,-535.06,0.00023013,2]
[400246771,1767216638975,-564.82,0.00023013,2]
[400246772,1767216638985,-500.0,0.00023013,2]
[400246773,1767216638994,-478.25220598,0.00023144,9]
[400246774,1767216639004,-332.24219281,0.00023144,4]
[400246775,1767216639013,-919.96,0.000232,14]
[400246776,1767216639023,-199.94664657,0.00023282,6]
[400246777,1767216639033,-231.01015328,0.00023282,17]
[400246778,1767216639043,-478.25220598,0.00023282,17]
[400246779,1767216639052,-332.24219281,0.00023282,6]
[400246780,1767216639063,-500.0,0.00023287,2]
[400246781,1767216639073,-502.54902313,0.00023287,2]
[400246782,1767216639082,-500.0,0.00023287,2]
[400246783,1767216639092,-651.44,0.00023287,2]
[400246784,1767216639101,-1032.76,0.00023287,2]
[400246785,1767216639111,-3980.81,0.00023287,2]
[400246786,1767216639120,-500.0,0.00023287,2]
[400246787,1767216639130,-5162.24,0.00023287,2]
[400246788,1767216639139,-500.0,0.00023287,2]
[400246789,1767216639149,-570.67,0.00023287,2]
[400246790,1767216639158,-1159.08,0.00023287,2]
[400246791,1767216639168,-500.0,0.00023287,2]
[400246792,1767216639177,-535.06,0.00023287,2]
[400246793,1767216639186,-564.82,0.00023287,2]
[400246794,1767216639196,-500.0,0.00023287,2]
[400246795,1767216639205,-478.25220598,0.00023421,25]
[400246796,1767216639215,-332.24219281,0.00023421,8]
[400246797,1767216639224,-199.94664657,0.00023559,10]
[400246798,1767216639233,-231.01015328,0.00023559,32]
[400246799,1767216639243,-478.25220598,0.00023559,32]
[400246800,1767216639253,-332.24219281,0.00023559,10]
[400246801,1767216639262,-500.0,0.00023561,2]
[400246802,1767216639272,-502.54902313,0.00023561,2]
[400246803,1767216639282,-500.0,0.00023561,2]
[400246804,1767216639291,-651.44,0.00023561,2]
[400246805,1767216639300,-1032.76,0.00023561,2]
[400246806,1767216639310,-3980.81,0.00023561,2]
[400246807,1767216639320,-500.0,0.00023561,2]
[400246808,1767216639330,-5162.24,0.00023561,2]
[400246809,1767216639339,-500.0,0.00023561,2]
[400246810,1767216639348,-570.67,0.00023561,2]
[400246811,1767216639358,-1159.08,0.00023561,2]
[400246812,1767216639371,-500.0,0.00023561,2]
[400246813,1767216639381,-535.06,0.00023561,2]
[400246814,1767216639391,-564.82,0.00023561,2]
[400246815,1767216639400,-542.49451985,0.00023561,2]
[400246816,1767216639411,-478.25220598,0.00023698,40]
[400246817,1767216639420,-332.24219281,0.00023698,12]
[400246818,1767216639429,-369.63919227,0.00023765,2]
[400246819,1767216639440,-174.1,0.00023811,2]
[400246820,1767216639449,-500.0,0.00023835,2]
[400246821,1767216639459,-502.54902313,0.00023835,2]
[400246822,1767216639468,-500.0,0.00023835,2]
[400246823,1767216639478,-651.44,0.00023835,2]
[400246824,1767216639487,-1032.76,0.00023835,2]
[400246825,1767216639496,-3980.81,0.00023835,2]
[400246826,1767216639505,-500.0,0.00023835,2]
[400246827,1767216639515,-5162.24,0.00023835,2]
[400246828,1767216639524,-500.0,0.00023835,2]
[400246829,1767216639533,-570.67,0.00023835,2]
[400246830,1767216639543,-1159.08,0.00023835,2]
[400246831,1767216639552,-500.0,0.00023835,2]
[400246832,1767216639561,-535.06,0.00023835,2]
[400246833,1767216639570,-564.82,0.00023835,2]
[400246834,1767216639580,-199.94664657,0.00023836,14]
[400246835,1767216639589,-231.01015328,0.00023836,48]
[400246836,1767216639599,-478.25220598,0.00023836,48]
[400246837,1767216639608,-332.24219281,0.00023836,14]
[400246838,1767216639618,-921.25637527,0.000239,2]
[400246839,1767216639627,-921.25637526,0.000239,2]
[400246840,1767216639637,-921.25637526,0.000239,2]
[400246841,1767216639646,-921.25637526,0.000239,2]
[400246842,1767216639655,-921.25637526,0.000239,2]
[400246843,1767216639665,-478.25220598,0.00023974,56]
[400246844,1767216639675,-332.24219281,0.00023974,16]
[400246845,1767216639684,-1733.59881032,0.00024,2]
[400246846,1767216639694,-465.14283166,0.00024,2]
[400246847,1767216639703,-500.0,0.00024109,2]
[400246848,1767216639713,-502.54902313,0.00024109,2]
[400246849,1767216639722,-500.0,0.00024109,2]
[400246850,1767216639731,-651.44,0.00024109,2]
[400246851,1767216639741,-1032.76,0.00024109,2]
[400246852,1767216639750,-3980.81,0.00024109,2]
[400246853,1767216639760,-500.0,0.00024109,2]
[400246854,1767216639770,-5162.24,0.00024109,2]
[400246855,1767216639780,-500.0,0.00024109,2]
[400246856,1767216639789,-570.67,0.00024109,2]
[400246857,1767216639798,-1159.08,0.00024109,2]
[400246858,1767216639808,-500.0,0.00024109,2]
[400246859,1767216639818,-535.06,0.00024109,2]
[400246860,1767216639827,-564.82,0.00024109,2]
[400246861,1767216639837,-320.0,0.0002411,12]
[400246862,1767216639846,-199.94664657,0.00024113,18]
[400246863,1767216639855,-231.01015328,0.00024113,63]
[400246864,1767216639865,-478.25220598,0.00024113,63]
[400246865,1767216639874,-332.24219281,0.00024113,18]
[400246866,1767216639883,-171040.67722117,0.00024142,2]
[400246867,1767216639893,-199.94664655,0.00024217,30]
[400246868,1767216639902,-896.89,0.00024218,2]
[400246869,1767216639912,-478.25220598,0.00024251,71]
[400246870,1767216639921,-332.24219281,0.00024251,20]
[400246871,1767216639930,-203.02005978,0.00024285,2]
[400246872,1767216639938,-500.0,0.00024383,2]
[400246873,1767216639944,-374.42612862,0.00024383,2]
[400246874,1767216639950,-500.0,0.00024383,2]
[400246875,1767216639957,-651.44,0.00024383,2]
[400246876,1767216639964,-1032.76,0.00024383,2]
[400246877,1767216639971,-3980.81,0.00024383,2]
[400246878,1767216639978,-500.0,0.00024383,2]
[400246879,1767216639985,-5162.24,0.00024383,2]
[400246880,1767216639992,-500.0,0.00024383,2]
[400246881,1767216639998,-570.67,0.00024383,2]
[400246882,1767216640005,-1159.08,0.00024383,2]
[400246883,1767216640011,-500.0,0.00024383,2]
[400246884,1767216640018,-535.06,0.00024383,2]
[400246885,1767216640024,-564.82,0.00024383,2]
[400246886,1767216640031,-231.01015328,0.00024389,79]
[400246887,1767216640037,-199.94664657,0.00024389,22]
[400246888,1767216640044,-478.25220598,0.00024389,79]
[400246889,1767216640050,-332.24219281,0.00024389,22]
[400246890,1767216640056,-478.25220598,0.00024528,86]
[400246891,1767216640063,-332.24219281,0.00024528,24]
[400246892,1767216640069,-8423.7,0.000246,2]
[400246893,1767216640076,-147614.64866886,0.0002465,2]
[400246894,1767216640083,-513.6105239,0.0002465,2]
[400246895,1767216640089,-151.0,0.0002465,2]
[400246896,1767216640096,-169.466222,0.0002465,2]
[400246897,1767216640103,-169.466222,0.0002465,2]
[400246898,1767216640111,-169.466222,0.0002465,2]
[400246899,1767216640117,-169.466222,0.0002465,2]
[400246900,1767216640123,-151.0,0.0002465,2]
[400246901,1767216640130,-500.0,0.00024657,2]
[400246902,1767216640138,-500.0,0.00024657,2]
[400246903,1767216640146,-651.44,0.00024657,2]
[400246904,1767216640153,-1032.76,0.00024657,2]
[400246905,1767216640161,-3980.81,0.00024657,2]
[400246906,1767216640169,-500.0,0.00024657,2]
[400246907,1767216640177,-5162.24,0.00024657,2]
[400246908,1767216640186,-500.0,0.00024657,2]
[400246909,1767216640196,-570.67,0.00024657,2]
[400246910,1767216640205,-1159.08,0.00024657,2]
[400246911,1767216640213,-500.0,0.00024657,2]
[400246912,1767216640222,-535.06,0.00024657,2]
[400246913,1767216640232,-564.82,0.00024657,2]
[400246914,1767216640241,-150.0,0.00024658,2]
[400246915,1767216640250,-380.0,0.00024658,2]
[400246916,1767216640260,-150.0,0.00024658,2]
[400246917,1767216640270,-231.01015328,0.00024666,94]
[400246918,1767216640280,-199.94664657,0.00024666,26]
[400246919,1767216640290,-478.25220598,0.00024666,94]
[400246920,1767216640299,-332.24219281,0.00024666,26]
[400246921,1767216640308,-16815.56649854,0.00024774,2]
[400246922,1767216640318,-150.0,0.00024795,2]
[400246923,1767216640327,-478.25220598,0.00024805,102]
[400246924,1767216640337,-332.24219281,0.00024805,28]
[400246925,1767216640346,-921.25637526,0.00024824,2]
[400246926,1767216640355,-455113.906232,0.000249,2]
[400246927,1767216640368,-151.0,0.000249,7]
[400246928,1767216640377,-169.466222,0.000249,7]
[400246929,1767216640403,-169.466222,0.000249,7]
[400246930,1767216640414,-169.466222,0.000249,7]
[400246931,1767216640423,-169.466222,0.000249,7]
[400246932,1767216640432,-151.0,0.000249,7]
[400246933,1767216640442,-500.0,0.00024931,2]
[400246934,1767216640451,-206.2,0.00024931,2]
[400246935,1767216640461,-651.44,0.00024931,2]
[400246936,1767216640470,-1032.76,0.00024931,2]
[400246937,1767216640479,-3980.81,0.00024931,2]
[400246938,1767216640488,-500.0,0.00024931,2]
[400246939,1767216640498,-5162.24,0.00024931,2]
[400246940,1767216640507,-500.0,0.00024931,2]
[400246941,1767216640516,-570.67,0.00024931,2]
[400246942,1767216640525,-1159.08,0.00024931,2]
[400246943,1767216640535,-500.0,0.00024931,2]
[400246944,1767216640543,-535.06,0.00024931,2]
[400246945,1767216640553,-564.82,0.00024931,2]
[400246946,1767216640562,-150.0,0.00024932,2]
[400246947,1767216640571,-231.01015328,0.00024943,110]
[400246948,1767216640580,-478.25220598,0.00024943,110]
[400246949,1767216640589,-332.24219281,0.00024943,30]
[400246950,1767216640598,-919.96,0.00025,14]
[400246951,1767216640607,-10392.29269205,0.00025,2]
[400246952,1767216640615,-30414.50219373,0.00025,15]
[400246953,1767216640625,-114455.71073726,0.00025,2]
[400246954,1767216640634,-1041.66666667,0.00025,30]
[400246955,1767216640643,-150.0,0.00025069,2]
[400246956,1767216640652,-579.57875916,0.000252,5]
[400246957,1767216640662,-205.56018131,0.00025205,2]
[400246958,1767216640671,-651.44,0.00025205,2]
[400246959,1767216640680,-1032.76,0.00025205,2]
[400246960,1767216640690,-3980.81,0.00025205,2]
[400246961,1767216640699,-500.0,0.00025205,2]
[400246962,1767216640708,-5162.24,0.00025205,2]
[400246963,1767216640718,-500.0,0.00025205,2]
[400246964,1767216640727,-570.67,0.00025205,2]
[400246965,1767216640736,-1159.08,0.00025205,2]
[400246967,1767216640746,-500.0,0.00025205,2]
[400246969,1767216640755,-535.06,0.00025205,2]
[400246971,1767216640764,-564.82,0.00025205,2]
[400246972,1767216640773,-301.50509152,0.00025205,2]
[400246973,1767216640782,-150.0,0.00025206,2]
[400246974,1767216640791,-250.0,0.00025343,2]
[400246975,1767216640800,-900.0,0.00025469,3]
[400246976,1767216640810,-651.44,0.00025479,2]
[400246977,1767216640819,-1032.76,0.00025479,2]
[400246978,1767216640828,-3980.81,0.00025479,2]
[400246979,1767216640837,-500.0,0.00025479,2]
[400246980,1767216640846,-5162.24,0.00025479,2]
[400246981,1767216640855,-183.92225153,0.00025479,2]
[400246982,1767216640864,-570.67,0.00025479,2]
[400246983,1767216640873,-1159.08,0.00025479,2]
[400246984,1767216640882,-500.0,0.00025479,2]
[400246985,1767216640891,-535.06,0.00025479,2]
[400246986,1767216640900,-564.82,0.00025479,2]
[400246987,1767216640910,-182262.81340394,0.000255,7]
[400246988,1767216640919,-1000.0,0.000255,2]
[400246989,1767216640928,-1041.66666667,0.000255,7]
[400246990,1767216640937,-151.0,0.000255,7]
[400246991,1767216640946,-169.466222,0.000255,7]
[400246992,1767216640956,-169.466222,0.000255,7]
[400246993,1767216640964,-169.466222,0.000255,7]
[400246994,1767216640974,-169.466222,0.000255,7]
[400246995,1767216640983,-151.0,0.000255,7]
[400246996,1767216640992,-174.1,0.0002551,2]
[400246997,1767216641001,-1080.36507781,0.00025553,2]
[400246998,1767216641010,-651.44,0.00025753,2]
[400246999,1767216641020,-1032.76,0.00025753,2]
[400247000,1767216641030,-3980.81,0.00025753,2]
[400247001,1767216641039,-500.0,0.00025753,2]
[400247002,1767216641048,-5162.24,0.00025753,2]
[400247003,1767216641057,-570.67,0.00025753,2]
[400247004,1767216641066,-1159.08,0.00025753,2]
[400247005,1767216641075,-500.0,0.00025753,2]
[400247006,1767216641085,-535.06,0.00025753,2]
[400247007,1767216641094,-564.82,0.00025753,2]
[400247008,1767216641103,-401.62719929,0.00025765,2]
[400247009,1767216641112,-39750.25710912,0.00026,10]
[400247010,1767216641121,-1041.66666667,0.00026,10]
[400247011,1767216641131,-529.34920278,0.00026,2]
[400247012,1767216641140,-19489.81,0.00026,2]
[400247013,1767216641150,-161.0,0.00026,5]
[400247014,1767216641160,-651.44,0.00026027,2]
[400247015,1767216641264,-1032.76,0.00026027,2]
[400247016,1767216641273,-3980.81,0.00026027,2]
[400247017,1767216641283,-500.0,0.00026027,2]
[400247018,1767216641292,-5162.24,0.00026027,2]
[400247019,1767216641301,-570.67,0.00026027,2]
[400247020,1767216641310,-1159.08,0.00026027,2]
[400247021,1767216641319,-500.0,0.00026027,2]
[400247022,1767216641329,-535.06,0.00026027,2]
[400247023,1767216641338,-564.82,0.00026027,2]
[400247024,1767216641347,-8423.7,0.000261,2]
[400247025,1767216641356,-1041.66666667,0.000263,7]
[400247026,1767216641369,-651.44,0.00026301,2]
[400247027,1767216641380,-1032.76,0.00026301,2]
[400247028,1767216641396,-3980.81,0.00026301,2]
[400247029,1767216641407,-285.08395132,0.00026301,2]
[400247030,1767216641416,-5162.24,0.00026301,2]
[400247031,1767216641425,-570.67,0.00026301,2]
[400247032,1767216641434,-1159.08,0.00026301,2]
[400247033,1767216641444,-500.0,0.00026301,2]
[400247034,1767216641453,-535.06,0.00026301,2]
[400247035,1767216641462,-564.82,0.00026301,2]
[400247036,1767216641472,-1000.0,0.00026334,2]
[400247037,1767216641481,-1000.0,0.00026334,2]
[400247038,1767216641491,-1000.0,0.00026334,2]
[400247039,1767216641500,-1000.0,0.00026334,2]
[400247040,1767216641509,-1000.0,0.00026334,2]
[400247041,1767216641518,-1000.0,0.00026334,2]
[400247042,1767216641527,-1000.0,0.00026334,2]
[400247043,1767216641536,-1000.0,0.00026334,2]
[400247044,1767216641545,-1000.0,0.00026334,2]
[400247045,1767216641554,-1000.0,0.00026334,2]
[400247046,1767216641563,-1000.0,0.00026334,2]
[400247047,1767216641573,-1000.0,0.00026334,2]
[400247048,1767216641582,-1000.0,0.00026334,2]
[400247049,1767216641591,-651.44,0.00026575,2]
[400247050,1767216641602,-1032.76,0.00026575,2]
[400247051,1767216641611,-3980.81,0.00026575,2]
[400247052,1767216641621,-5162.24,0.00026575,2]
[400247053,1767216641630,-570.67,0.00026575,2]
[400247054,1767216641640,-1159.08,0.00026575,2]
[400247055,1767216641649,-500.0,0.00026575,2]
[400247056,1767216641659,-535.06,0.00026575,2]
[400247057,1767216641668,-564.82,0.00026575,2]
[400247058,1767216641678,-1973.55132122,0.00026621,2]
[400247059,1767216641687,-651.44,0.00026849,2]
[400247060,1767216641696,-1032.76,0.00026849,2]
[400247061,1767216641706,-3980.81,0.00026849,2]
[400247062,1767216641715,-5162.24,0.00026849,2]
[400247063,1767216641724,-570.67,0.00026849,2]
[400247064,1767216641733,-1159.08,0.00026849,2]
[400247065,1767216641743,-500.0,0.00026849,2]
[400247066,1767216641752,-535.06,0.00026849,2]
[400247067,1767216641762,-564.82,0.00026849,2]
[400247068,1767216641771,-185.0,0.00026849,22]
[400247069,1767216641782,-797.0,0.00026956,2]
[400247070,1767216641791,-368.0,0.00026968,2]
[400247071,1767216641800,-1041.66666667,0.000271,7]
[400247072,1767216641808,-651.44,0.00027123,2]
[400247073,1767216641818,-1032.76,0.00027123,2]
[400247074,1767216641826,-3980.81,0.00027123,2]
[400247075,1767216641836,-5162.24,0.00027123,2]
[400247076,1767216641845,-570.67,0.00027123,2]
[400247077,1767216641854,-1159.08,0.00027123,2]
[400247078,1767216641864,-500.0,0.00027123,2]
[400247079,1767216641873,-535.06,0.00027123,2]
[400247080,1767216641882,-564.82,0.00027123,2]
[400247081,1767216641891,-368.0,0.00027144,2]
[400247082,1767216641900,-174.1,0.00027209,2]
[400247083,1767216641910,-921.25637526,0.00027343,2]
[400247084,1767216641919,-12667.999999,0.0002739,2]
[400247085,1767216641929,-568.83559814,0.0002739,7]
[400247086,1767216641938,-150.0,0.0002739,2]
[400247087,1767216641948,-651.44,0.00027397,2]
[400247088,1767216641956,-1032.76,0.00027397,2]
[400247089,1767216641966,-3980.81,0.00027397,2]
[400247090,1767216641975,-5162.24,0.00027397,2]
[400247091,1767216641983,-570.67,0.00027397,2]
[400247092,1767216641993,-1159.08,0.00027397,2]
[400247093,1767216642001,-500.0,0.00027397,2]
[400247094,1767216642010,-535.06,0.00027397,2]
[400247095,1767216642018,-564.82,0.00027397,2]
[400247096,1767216642026,-299.0,0.00027397,2]
[400247097,1767216642036,-299.0,0.00027397,2]
[400247098,1767216642044,-299.0,0.00027397,2]
[400247099,1767216642053,-299.0,0.00027397,2]
[400247100,1767216642062,-299.0,0.00027397,2]
[400247101,1767216642071,-299.0,0.00027397,2]
[400247102,1767216642079,-299.0,0.00027397,2]
[400247103,1767216642089,-299.0,0.00027397,2]
[400247104,1767216642098,-299.0,0.00027397,2]
[400247105,1767216642107,-299.0,0.00027397,2]
[400247106,1767216642116,-299.0,0.00027397,2]
[400247107,1767216642125,-299.0,0.00027397,2]
[400247108,1767216642133,-299.0,0.00027397,2]
[400247109,1767216642142,-299.0,0.00027397,2]
[400247110,1767216642151,-299.0,0.00027397,2]
[400247111,1767216642160,-299.0,0.00027397,2]
[400247112,1767216642169,-299.0,0.00027397,2]
[400247113,1767216642178,-299.0,0.00027397,2]
[400247114,1767216642187,-299.0,0.00027397,2]
[400247115,1767216642196,-299.0,0.00027397,2]
[400247116,1767216642204,-299.0,0.00027397,2]
[400247117,1767216642214,-299.0,0.00027397,2]
[400247118,1767216642223,-299.0,0.00027397,2]
[400247119,1767216642232,-299.0,0.00027397,2]
[400247120,1767216642241,-299.0,0.00027397,2]
[400247121,1767216642250,-299.0,0.00027397,2]
[400247122,1767216642259,-299.0,0.00027397,2]
[400247123,1767216642268,-299.0,0.00027397,2]
[400247124,1767216642278,-299.0,0.00027397,2]
[400247125,1767216642287,-299.0,0.00027397,2]
[400247126,1767216642295,-299.0,0.00027397,2]
[400247127,1767216642304,-299.0,0.00027397,2]
[400247128,1767216642314,-179.18193,0.00027397,7]
[400247129,1767216642323,-151.0,0.00027397,7]
[400247130,1767216642332,-151.0,0.00027397,7]
[400247131,1767216642342,-151.0,0.00027397,7]
[400247132,1767216642351,-151.0,0.00027397,7]
[400247133,1767216642360,-151.0,0.00027397,7]
[400247134,1767216642372,-151.0,0.00027397,7]
[400247135,1767216642381,-151.0,0.00027397,7]
[400247136,1767216642391,-151.0,0.00027397,7]
[400247137,1767216642403,-151.0,0.00027397,7]
[400247138,1767216642414,-221.765393,0.00027397,7]
[400247139,1767216642424,-151.0,0.00027397,7]
[400247140,1767216642432,-151.0,0.00027397,7]
[400247141,1767216642444,-151.0,0.00027397,7]
[400247142,1767216642453,-151.0,0.00027397,7]
[400247143,1767216642462,-151.0,0.00027397,7]
[400247144,1767216642471,-151.0,0.00027397,7]
[400247145,1767216642480,-151.0,0.00027397,7]
[400247146,1767216642489,-151.0,0.00027397,7]
[400247147,1767216642498,-151.0,0.00027397,7]
[400247148,1767216642507,-151.0,0.00027397,7]
[400247149,1767216642516,-300.511634,0.00027397,7]
[400247150,1767216642525,-151.0,0.00027397,7]
[400247151,1767216642534,-160.429789,0.00027397,7]
[400247152,1767216642543,-394.521351,0.00027397,7]
[400247153,1767216642552,-394.521351,0.00027397,7]
[400247154,1767216642561,-394.521351,0.00027397,7]
[400247155,1767216642570,-429.596572,0.00027397,7]
[400247156,1767216642580,-429.596572,0.00027397,7]
[400247157,1767216642589,-429.596572,0.00027397,7]
[400247158,1767216642600,-394.521351,0.00027397,7]
[400247159,1767216642609,-394.521351,0.00027397,7]
[400247160,1767216642620,-394.521351,0.00027397,7]
[400247161,1767216642630,-429.596572,0.00027397,7]
[400247162,1767216642639,-429.596572,0.00027397,7]
[400247163,1767216642648,-429.596572,0.00027397,7]
[400247164,1767216642658,-394.521351,0.00027397,7]
[400247165,1767216642668,-394.521351,0.00027397,7]
[400247166,1767216642677,-429.596572,0.00027397,7]
[400247167,1767216642687,-394.521351,0.00027397,7]
[400247168,1767216642696,-429.596572,0.00027397,7]
[400247169,1767216642705,-429.596572,0.00027397,7]
[400247170,1767216642714,-151.0,0.00027397,7]
[400247171,1767216642723,-394.521351,0.00027397,7]
[400247172,1767216642732,-151.0,0.00027397,7]
[400247173,1767216642742,-394.521351,0.00027397,7]
[400247174,1767216642751,-429.596572,0.00027397,7]
[400247175,1767216642760,-151.0,0.00027397,7]
[400247176,1767216642770,-394.521351,0.00027397,7]
[400247177,1767216642779,-151.0,0.00027397,7]
[400247179,1767216642788,-429.596572,0.00027397,7]
[400247180,1767216642797,-151.0,0.00027397,7]
[400247181,1767216642807,-429.596572,0.00027397,7]
[400247182,1767216642816,-151.0,0.00027397,7]
[400247183,1767216642825,-151.0,0.00027397,7]
[400247184,1767216642834,-151.0,0.00027397,7]
[400247185,1767216642843,-151.0,0.00027397,7]
[400247187,1767216642852,-206.620926,0.00027397,7]
[400247188,1767216642861,-754.40778,0.00027397,7]
[400247190,1767216642870,-754.40778,0.00027397,7]
[400247191,1767216642879,-754.40778,0.00027397,7]
[400247192,1767216642888,-754.40778,0.00027397,7]
[400247193,1767216642897,-754.40778,0.00027397,7]